bitfinex-derivatives/quotes_BTCF0:USTF0_20250106
["timestamp","ask_amount","ask_price","bid_price","bid_amount"]
[1736182356037,1.48817445,102230.0,102220.0,0.008]
[1736182356233,0.048906,102220.0,102200.0,0.409712]
[1736182356437,0.14075322,102210.0,102200.0,0.409712]
[1736182356829,0.3608,102220.0,102200.0,0.50155422]
[1736182357036,1.13715524,102230.0,102220.0,0.048906]
[1736182357240,1.13663523,102230.0,102220.0,0.14074822]
[1736182357540,0.23773123,102230.0,102220.0,0.50154822]
[1736182357732,0.23773123,102230.0,102220.0,0.64114822]
[1736182357934,0.23473123,102230.0,102220.0,0.77704822]
[1736182358136,0.23473123,102230.0,102220.0,0.685206]
[1736182358433,0.34664703,102230.0,102220.0,0.048906]
[1736182358735,0.70644703,102230.0,102220.0,0.048906]
[1736182358935,0.34664703,102230.0,102220.0,0.048906]
[1736182359340,0.048906,102220.0,102210.0,0.27565022]
[1736182359536,0.048906,102220.0,102210.0,0.183808]
[1736182359733,0.15890143,102220.0,102210.0,0.048908]
[1736182360046,0.14074822,102220.0,102210.0,0.409708]
[1736182360246,0.14074822,102220.0,102210.0,0.3608]
[1736182360432,0.27804822,102220.0,102210.0,0.412711]
[1736182361133,0.27804822,102220.0,102210.0,0.3638]
[1736182361736,0.27804822,102220.0,102210.0,0.412711]
[1736182364246,0.27804822,102220.0,102210.0,0.051911]
[1736182364443,0.27804822,102220.0,102210.0,0.003]
[1736182364744,0.54584822,102220.0,102210.0,0.003]
[1736182364941,0.90664822,102220.0,102210.0,0.003]
[1736182366943,0.91634567,102220.0,102210.0,0.003]
[1736182368991,1.27804567,102220.0,102210.0,0.003]
[1736182369452,0.91724567,102220.0,102210.0,0.003]
[1736182370257,0.55760345,102220.0,102210.0,0.412711]
[1736182370751,0.64944567,102220.0,102210.0,0.412711]
[1736182371652,0.72677024,102220.0,102210.0,0.412711]
[1736182372643,0.28774567,102220.0,102210.0,0.412711]
[1736182377358,0.28774567,102220.0,102210.0,0.3638]
[1736182377752,0.64854567,102220.0,102210.0,0.003]
[1736182380277,1.01024567,102220.0,102210.0,0.003]
[1736182380469,0.048916,102200.0,102190.0,0.539618]
[1736182381652,0.048916,102200.0,102190.0,0.63146022]
[1736182382059,0.049916,102200.0,102190.0,0.555618]
[1736182382658,0.3617,102180.0,102150.0,0.17567767]
[1736182382868,0.409732,102170.0,102150.0,0.22461767]
[1736182383104,0.50157522,102170.0,102160.0,0.1266]
[1736182383263,0.048933,102170.0,102160.0,0.2554]
[1736182383457,0.06731834,102170.0,102160.0,0.2554]
[1736182383768,0.06729875,102170.0,102160.0,0.304335]
[1736182384067,0.06729875,102170.0,102160.0,0.665135]
[1736182384068,0.048933,102170.0,102160.0,0.665135]
[1736182384976,0.25392248,102170.0,102160.0,0.304335]
[1736182385473,0.25392248,102170.0,102160.0,0.2554]
[1736182385659,0.7065647,102170.0,102160.0,0.2574]
[1736182385859,0.7065647,102170.0,102160.0,0.002]
[1736182386260,0.6770742,102170.0,102160.0,0.002]
[1736182386465,0.6790742,102170.0,102160.0,0.002]
[1736182386771,0.04894,102150.0,102140.0,0.2691]
[1736182387066,0.86238222,102150.0,102140.0,0.2691]
[1736182387464,0.86238222,102150.0,102130.0,0.31577767]
[1736182387465,0.048945,102140.0,102130.0,0.17567767]
[1736182387669,0.50158722,102140.0,102130.0,0.17567767]
[1736182388094,0.50158722,102140.0,102120.0,0.2691]
[1736182388494,0.50159122,102130.0,102120.0,0.2691]
[1736182388614,0.409749,102130.0,102120.0,0.2691]
[1736182388889,0.409749,102130.0,102120.0,0.318054]
[1736182389092,0.50159122,102130.0,102120.0,0.048954]
[1736182389296,0.50159122,102130.0,102120.0,0.1339]
[1736182389590,0.61828249,102130.0,102120.0,0.1339]
[1736182389781,0.61928249,102130.0,102120.0,0.1349]
[1736182389980,0.52744027,102130.0,102120.0,0.1349]
[1736182390193,0.61928249,102130.0,102120.0,0.1349]
[1736182390496,0.52744027,102130.0,102120.0,0.183854]
[1736182391082,0.410749,102130.0,102120.0,0.183854]
[1736182392188,0.42050707,102130.0,102120.0,0.183854]
[1736182392576,0.15154929,102130.0,102120.0,0.1349]
[1736182392764,0.05970707,102130.0,102120.0,0.27569622]
[1736182392967,0.16543521,102140.0,102130.0,0.048949]
[1736182393162,0.73068908,102150.0,102140.0,0.048945]
[1736182393464,0.36928907,102150.0,102140.0,0.14078722]
[1736182393665,0.36928907,102150.0,102140.0,0.048945]
[1736182393866,0.67631853,102150.0,102140.0,0.048945]
[1736182394168,0.31551853,102150.0,102140.0,0.048945]
[1736182394566,0.67631853,102150.0,102140.0,0.048945]
[1736182394875,0.68603993,102150.0,102140.0,0.048945]
[1736182395474,0.048945,102140.0,102130.0,1.685048]
[1736182395675,0.14078722,102140.0,102130.0,1.5]
[1736182395878,0.048949,102130.0,102120.0,0.63549422]
[1736182396178,0.048946,102140.0,102130.0,0.048946]
[1736182396475,0.048946,102140.0,102130.0,0.28068822]
[1736182397665,0.048946,102140.0,102130.0,0.188846]
[1736182397880,0.048946,102140.0,102130.0,0.189846]
[1736182398284,0.048946,102140.0,102130.0,0.28168822]
[1736182398672,0.004,102140.0,102130.0,0.28068822]
[1736182398880,0.013,102140.0,102130.0,0.64248822]
[1736182399177,0.36914493,102160.0,102150.0,0.04894]
[1736182399402,0.32020793,102160.0,102150.0,0.95422444]
[1736182399578,0.20385787,102180.0,102160.0,0.048934]
[1736182399769,0.20385787,102180.0,102170.0,0.99237222]
[1736182399969,0.23444938,102190.0,102180.0,0.048925]
[1736182400278,0.23444938,102190.0,102180.0,0.59340944]
[1736182400483,0.00146896,102190.0,102180.0,0.59340944]
[1736182400683,0.0584368,102200.0,102190.0,0.048921]
[1736182400979,0.0584368,102200.0,102190.0,0.14076322]
[1736182400980,0.048917,102200.0,102190.0,0.14076322]
[1736182401495,0.048917,102200.0,102190.0,0.50156322]
[1736182401670,0.048917,102200.0,102190.0,0.409721]
[1736182401875,0.048917,102200.0,102190.0,2.00156322]
[1736182402078,0.58420218,102210.0,102200.0,0.048916]
[1736182402381,0.409714,102210.0,102200.0,0.14075822]
[1736182403076,0.409714,102210.0,102200.0,0.048916]
[1736182403280,0.409714,102210.0,102200.0,0.14075822]
[1736182404181,0.41944221,102210.0,102200.0,0.14075822]
[1736182404380,0.42444221,102210.0,102200.0,0.14175822]
[1736182404884,0.42444221,102210.0,102200.0,0.14275822]
[1736182405082,0.42844221,102210.0,102200.0,0.14275822]
[1736182407882,0.06764221,102210.0,102200.0,0.14275822]
[1736182408088,0.06764221,102210.0,102200.0,0.50355822]
[1736182408280,0.01872821,102210.0,102200.0,0.50355822]
[1736182408584,0.009,102210.0,102200.0,0.50355822]
[1736182408781,0.735209,102230.0,102210.0,0.048911]
[1736182408982,0.048906,102220.0,102210.0,0.50155322]
[1736182409980,0.052906,102220.0,102210.0,0.50255322]
[1736182411379,0.052906,102220.0,102210.0,0.50355322]
[1736182411695,0.001,102220.0,102210.0,0.50355322]
[1736182412081,0.001,102220.0,102210.0,0.50255322]
[1736182412277,0.005,102220.0,102210.0,0.50255322]
[1736182412987,0.09684222,102220.0,102210.0,0.410711]
[1736182413193,0.09684222,102220.0,102210.0,0.049911]
[1736182413194,0.50654822,102220.0,102210.0,0.049911]
[1736182413389,0.414706,102220.0,102210.0,0.049911]
[1736182413889,0.414706,102220.0,102210.0,1.07679544]
[1736182413890,0.005,102220.0,102210.0,1.07679544]
[1736182414079,0.00060001,102230.0,102220.0,0.048906]
[1736182414286,0.00060001,102230.0,102220.0,0.63484822]
[1736182414592,0.00146809,102240.0,102230.0,0.048901]
[1736182414794,0.00146809,102240.0,102230.0,0.50154322]
[1736182415189,0.00146809,102240.0,102230.0,2.00154322]
[1736182415780,0.01105497,102240.0,102230.0,2.00154322]
[1736182415995,0.00646809,102240.0,102230.0,2.00254322]
[1736182416401,0.00646809,102240.0,102230.0,2.09438544]
[1736182416590,0.00646809,102240.0,102230.0,2.00254322]
[1736182416792,0.005,102240.0,102230.0,0.410701]
[1736182416991,0.005,102240.0,102230.0,0.14174322]
[1736182417291,0.005,102240.0,102230.0,1.64174322]
[1736182417799,0.053897,102240.0,102230.0,0.049901]
[1736182418098,0.053897,102240.0,102230.0,0.14174322]
[1736182418591,0.005,102240.0,102230.0,0.14174322]
[1736182418794,0.14573922,102240.0,102230.0,0.049901]
[1736182419098,0.542697,102240.0,102230.0,0.049901]
[1736182419297,0.181897,102240.0,102230.0,0.14174322]
[1736182419992,0.542697,102240.0,102230.0,0.049901]
[1736182421088,0.63453922,102240.0,102230.0,0.049901]
[1736182422387,0.72638144,102240.0,102230.0,0.001]
[1736182422693,0.048907,102220.0,102210.0,0.048909]
[1736182423284,0.898702,102230.0,102220.0,0.048906]
[1736182423893,0.99054422,102230.0,102220.0,0.048906]
[1736182424999,0.048906,102220.0,102210.0,0.001]
[1736182425203,0.048911,102210.0,102200.0,0.41118142]
[1736182425403,0.181111,102210.0,102200.0,0.41118142]
[1736182425797,0.316311,102210.0,102200.0,0.41118142]
[1736182426395,0.76895322,102210.0,102200.0,0.05038142]
[1736182426595,0.677111,102210.0,102200.0,0.05038142]
[1736182427491,0.76995322,102210.0,102200.0,0.05138142]
[1736182427900,0.77195322,102210.0,102200.0,0.05138142]
[1736182428299,0.77195322,102210.0,102200.0,0.00246742]
[1736182428900,1.22549544,102210.0,102200.0,0.001]
[1736182429103,1.22549544,102210.0,102190.0,1.548918]
[1736182429104,0.048916,102200.0,102190.0,1.548918]
[1736182429307,0.65441862,102200.0,102190.0,1.548918]
[1736182429505,0.63535822,102200.0,102190.0,1.548918]
[1736182430712,0.63535822,102200.0,102190.0,1.551918]
[1736182431394,0.63535822,102200.0,102190.0,1.552918]
[1736182431594,0.543516,102200.0,102190.0,1.552918]
[1736182431798,0.4946,102200.0,102190.0,1.64476022]
[1736182432505,0.543516,102200.0,102190.0,1.552918]
[1736182432714,0.63535822,102200.0,102190.0,1.552918]
[1736182433819,0.81066997,102200.0,102190.0,1.552918]
[1736182435711,0.71882775,102200.0,102190.0,1.552918]
[1736182436115,0.71882775,102200.0,102190.0,1.64476022]
[1736182436416,0.17531175,102200.0,102190.0,1.64476022]
[1736182436626,0.22422775,102200.0,102190.0,1.688118]
[1736182436811,0.58502775,102200.0,102190.0,1.688118]
[1736182437915,0.72974407,102210.0,102200.0,0.048916]
[1736182438214,0.18483007,102210.0,102200.0,0.50155822]
[1736182438408,0.18483007,102210.0,102200.0,0.64035822]
[1736182438613,0.17531175,102210.0,102200.0,0.64035822]
[1736182438810,0.17531175,102210.0,102200.0,2.14035822]
[1736182439014,0.17531175,102210.0,102200.0,2.14135822]
[1736182439015,0.17631175,102210.0,102200.0,2.14135822]
[1736182439221,0.001,102210.0,102200.0,2.14135822]
[1736182440116,0.001,102210.0,102200.0,2.049516]
[1736182440309,0.001,102210.0,102200.0,2.14135822]
[1736182440717,0.003,102210.0,102200.0,2.14135822]
[1736182441639,0.410604,102230.0,102200.0,2.23320044]
[1736182441812,0.048904,102230.0,102220.0,0.14074822]
[1736182442017,0.06759138,102230.0,102220.0,0.14074822]
[1736182442215,0.06759138,102230.0,102220.0,0.28484822]
[1736182442418,0.21357007,102230.0,102220.0,0.28484822]
[1736182442618,0.19488269,102230.0,102220.0,0.28484822]
[1736182443028,0.15097869,102230.0,102220.0,0.64564822]
[1736182443325,0.58501075,102240.0,102220.0,0.64564822]
[1736182443326,0.17531175,102240.0,102220.0,0.73749044]
[1736182443622,0.1459496,102240.0,102230.0,0.59338544]
[1736182444423,0.20314082,102260.0,102250.0,0.048892]
[1736182444622,0.23298042,102270.0,102260.0,0.048887]
[1736182444812,0.23298042,102270.0,102260.0,0.63232922]
[1736182445012,0.17504358,102270.0,102260.0,0.63232922]
[1736182446026,0.17504358,102270.0,102260.0,0.63332922]
[1736182446631,0.048882,102270.0,102260.0,0.541486]
[1736182446935,0.06758192,102270.0,102260.0,0.50252822]
[1736182447117,0.07458192,102270.0,102260.0,0.50352822]
[1736182448015,0.07558192,102270.0,102260.0,0.50352822]
[1736182448915,0.02669992,102270.0,102260.0,0.50352822]
[1736182449111,0.008,102270.0,102260.0,0.50352822]
[1736182449318,0.02465559,102270.0,102260.0,0.50252822]
[1736182449725,0.006,102270.0,102260.0,0.50252822]
[1736182450123,0.02465304,102270.0,102260.0,0.50252822]
[1736182450329,0.006,102270.0,102260.0,0.59437044]
[1736182450544,0.006,102270.0,102260.0,0.73667044]
[1736182450725,0.006,102270.0,102260.0,2.23667044]
[1736182454028,0.00952208,102290.0,102280.0,0.048878]
[1736182454234,0.14887,102300.0,102290.0,0.048873]
[1736182454531,0.1,102300.0,102290.0,0.409673]
[1736182454727,0.1,102300.0,102290.0,1.909673]
[1736182454922,0.1,102300.0,102290.0,2.00151522]
[1736182455124,0.1,102300.0,102290.0,2.09335744]
[1736182455535,0.1,102300.0,102290.0,2.14221522]
[1736182455734,0.101,102300.0,102290.0,2.14321522]
[1736182455927,0.101,102300.0,102290.0,2.23505744]
[1736182456127,0.101,102300.0,102290.0,2.14321522]
[1736182456330,0.104,102300.0,102290.0,2.23505744]
[1736182456629,0.1363,102320.0,102310.0,0.048863]
[1736182456933,0.1363,102320.0,102310.0,0.50150522]
[1736182457331,0.315356,102330.0,102320.0,0.048858]
[1736182457531,0.315356,102330.0,102320.0,0.50150022]
[1736182457735,0.00969069,102330.0,102320.0,0.59334244]
[1736182457928,0.00146681,102350.0,102340.0,0.048849]
[1736182458129,0.00146681,102350.0,102340.0,0.14069122]
[1736182458328,0.93384195,102370.0,102340.0,0.50149122]
[1736182458531,0.93474195,102370.0,102360.0,0.14068122]
[1736182459133,0.93474195,102370.0,102360.0,0.50148122]
[1736182459134,0.3617,102370.0,102360.0,0.50148122]
[1736182459433,0.00947284,102370.0,102360.0,0.59332344]
[1736182459629,0.821127,102390.0,102370.0,0.048831]
[1736182459859,0.3608,102380.0,102370.0,1.64067322]
[1736182460126,0.3608,102380.0,102370.0,1.548831]
[1736182460433,0.3608,102380.0,102370.0,0.048833]
[1736182460439,0.14067222,102380.0,102370.0,0.048833]
[1736182460633,0.45264222,102380.0,102360.0,0.001]
[1736182460835,0.048842,102360.0,102340.0,0.3608]
[1736182461133,0.54717987,102360.0,102340.0,0.048845]
[1736182461337,0.54717987,102360.0,102320.0,1.12223787]
[1736182461338,0.3608,102350.0,102320.0,1.12223787]
[1736182461539,0.3608,102340.0,102330.0,0.097706]
[1736182461729,0.409648,102350.0,102330.0,0.048853]
[1736182461928,0.409648,102350.0,102340.0,0.048849]
[1736182462230,0.90798587,102350.0,102340.0,0.048849]
[1736182462436,0.048849,102340.0,102330.0,0.048853]
[1736182462637,0.409649,102340.0,102330.0,0.048853]
[1736182463543,0.409649,102340.0,102310.0,0.41112581]
[1736182463544,0.54718687,102340.0,102310.0,0.49980368]
[1736182463741,0.184755,102330.0,102320.0,0.048857]
[1736182463931,0.96649287,102330.0,102320.0,0.048857]
[1736182464236,0.828955,102330.0,102320.0,0.048857]
[1736182465443,0.829955,102330.0,102320.0,0.049857]
[1736182466942,0.91863787,102330.0,102310.0,0.05032581]
[1736182467137,0.048864,102310.0,102300.0,0.048867]
[1736182467340,0.048859,102320.0,102310.0,0.048863]
[1736182467535,1.19225501,102330.0,102320.0,0.048858]
[1736182467731,1.191655,102330.0,102320.0,0.048858]
[1736182467934,0.4203,102330.0,102320.0,0.18639587]
[1736182468532,0.4193,102330.0,102320.0,0.048858]
[1736182469134,0.4193,102330.0,102320.0,0.049858]
[1736182469755,0.4193,102330.0,102310.0,0.048862]
[1736182469756,0.048859,102320.0,102310.0,0.048862]
[1736182469938,0.3608,102320.0,102310.0,0.048862]
[1736182470243,0.409659,102320.0,102300.0,0.18640287]
[1736182470540,0.01870773,102310.0,102300.0,0.048865]
[1736182470935,0.3608,102310.0,102300.0,0.048865]
[1736182471740,0.3608,102310.0,102300.0,0.18640287]
[1736182471941,0.40966,102320.0,102300.0,0.19540287]
[1736182472138,1.191336,102330.0,102310.0,0.18640087]
[1736182472442,0.01859809,102320.0,102310.0,0.409663]
[1736182472631,0.01859809,102330.0,102320.0,0.048858]
[1736182472836,0.01859809,102330.0,102320.0,1.548858]
[1736182473236,0.37939809,102330.0,102320.0,1.548858]
[1736182473443,0.409654,102330.0,102320.0,1.548858]
[1736182474040,0.40965,102340.0,102330.0,0.048854]
[1736182474748,0.3608,102340.0,102320.0,1.5]
[1736182474939,0.43030523,102330.0,102320.0,0.001]
[1736182475140,0.411658,102330.0,102320.0,0.001]
[1736182475446,0.409658,102330.0,102320.0,1.548858]
[1736182476141,0.411658,102330.0,102320.0,1.548858]
[1736182477447,0.411658,102330.0,102320.0,2.04719587]
[1736182477448,0.002,102330.0,102320.0,2.04719587]
[1736182477648,0.01858519,102340.0,102330.0,0.048854]
[1736182477850,0.462114,102350.0,102340.0,0.048849]
[1736182479845,0.4036,102350.0,102340.0,0.18638687]
[1736182480345,0.409642,102360.0,102340.0,0.18638687]
[1736182480552,0.409642,102360.0,102350.0,0.048844]
[1736182480944,0.3608,102360.0,102350.0,1.68638187]
[1736182481147,0.14559601,102380.0,102360.0,0.048839]
[1736182481344,0.14559601,102380.0,102370.0,0.54717287]
[1736182481749,0.14559601,102380.0,102370.0,2.04717287]
[1736182482143,0.70323599,102390.0,102380.0,0.04883]
[1736182483656,0.04883,102380.0,102370.0,0.001]
[1736182483847,0.56672246,102380.0,102370.0,0.002]
[1736182484150,0.54816787,102380.0,102370.0,0.002]
[1736182484350,0.54716787,102380.0,102370.0,0.001]
[1736182484556,0.58396212,102380.0,102370.0,0.001]
[1736182484754,0.04884,102360.0,102350.0,0.048842]
[1736182484946,0.06724322,102360.0,102350.0,0.048842]
[1736182485147,0.01840322,102360.0,102350.0,0.048842]
[1736182485653,0.37920322,102360.0,102350.0,0.048842]
[1736182485858,0.3608,102360.0,102350.0,0.048842]
[1736182486956,0.410639,102360.0,102350.0,0.049842]
[1736182489153,0.049839,102360.0,102350.0,0.18737987]
[1736182489344,0.06824723,102360.0,102350.0,0.18737987]
[1736182489548,0.1954388,102360.0,102350.0,0.049842]
[1736182489856,0.69377667,102360.0,102350.0,0.049842]
[1736182490064,0.83817667,102360.0,102350.0,0.001]
[1736182490554,0.69257687,102360.0,102350.0,0.001]
[1736182491452,0.54817687,102360.0,102350.0,0.001]
[1736182493455,0.54817687,102360.0,102350.0,0.049844]
[1736182493960,0.54817687,102360.0,102350.0,0.001]
[1736182494144,0.54817687,102360.0,102340.0,0.048848]
[1736182494349,0.70971897,102350.0,102340.0,0.048848]
[1736182494550,0.69128187,102350.0,102340.0,0.048848]
[1736182494849,0.553744,102350.0,102340.0,0.048848]
[1736182495456,0.553744,102350.0,102340.0,0.049848]
[1736182496758,0.409644,102350.0,102340.0,0.049849]
[1736182497160,0.412644,102350.0,102340.0,0.049849]
[1736182497549,0.003,102350.0,102340.0,0.54818687]
[1736182497755,0.003,102350.0,102340.0,0.18738687]
[1736182497955,0.003,102350.0,102340.0,0.049849]
[1736182498156,0.02154635,102350.0,102340.0,1.549849]
[1736182498658,0.43119035,102350.0,102340.0,0.049849]
[1736182498865,0.412644,102350.0,102340.0,0.049849]
[1736182499077,0.55018187,102350.0,102340.0,0.049849]
[1736182499664,0.412644,102350.0,102340.0,0.049849]
[1736182500796,0.5582438,102350.0,102340.0,0.049849]
[1736182500970,1.05748167,102350.0,102340.0,0.001]
[1736182501275,0.048855,102330.0,102320.0,0.048857]
[1736182501464,0.54719287,102330.0,102320.0,0.048857]
[1736182501668,0.550555,102330.0,102320.0,0.048857]
[1736182502478,0.1409,102330.0,102320.0,0.048857]
[1736182502773,0.1409,102330.0,102310.0,0.1735044]
[1736182502774,0.048858,102320.0,102310.0,0.1735044]
[1736182503071,0.048863,102310.0,102300.0,0.4052436]
[1736182503268,0.68010087,102310.0,102300.0,0.4052436]
[1736182503663,0.048868,102300.0,102290.0,0.23187526]
[1736182503866,0.5651175,102300.0,102290.0,0.23187526]
[1736182504055,0.54720587,102300.0,102290.0,0.23187526]
[1736182504255,0.54720587,102300.0,102270.0,0.048882]
[1736182504256,0.048878,102280.0,102270.0,0.048882]
[1736182504467,0.048882,102270.0,102260.0,0.28076026]
[1736182504764,0.409682,102270.0,102260.0,0.28076026]
[1736182505264,0.409679,102280.0,102270.0,0.048882]
[1736182505471,0.409673,102290.0,102280.0,0.048878]
[1736182505772,0.3608,102290.0,102280.0,0.18641587]
[1736182506360,0.3608,102290.0,102280.0,1.688278]
[1736182506563,0.409669,102300.0,102290.0,0.048873]
[1736182506974,0.6120908,102300.0,102290.0,0.048873]
[1736182507562,0.048873,102290.0,102280.0,1.833976]
[1736182507759,0.54721087,102290.0,102280.0,1.6464]
[1736182507965,0.54721087,102290.0,102280.0,0.007]
[1736182508270,0.82461087,102290.0,102280.0,0.007]
[1736182508457,0.82461087,102290.0,102280.0,0.004]
[1736182510566,0.82661087,102290.0,102280.0,0.004]
[1736182510773,0.048882,102280.0,102260.0,1.680884]
[1736182511078,0.409682,102270.0,102260.0,1.680884]
[1736182511977,0.55492842,102270.0,102260.0,1.680884]
[1736182512206,0.55492842,102270.0,102260.0,1.682884]
[1736182512567,0.55492842,102270.0,102260.0,1.686884]
[1736182513175,0.49681863,102270.0,102260.0,1.686884]
[1736182513571,0.49681863,102270.0,102260.0,1.506]
[1736182513777,0.49681863,102270.0,102260.0,0.006]
[1736182513778,0.6343565,102270.0,102260.0,0.006]
[1736182514389,0.61300081,102270.0,102260.0,0.14353787]
[1736182514575,0.56411881,102270.0,102260.0,0.19242487]
[1736182514883,0.56411881,102270.0,102260.0,0.32662487]
[1736182515478,0.3608,102270.0,102260.0,0.32662487]
[1736182515794,0.20331881,102280.0,102270.0,0.048882]
[1736182515978,0.50604642,102290.0,102270.0,0.82511987]
[1736182516176,0.50604642,102290.0,102280.0,0.18641587]
[1736182516371,0.56401126,102290.0,102280.0,0.18641587]
[1736182516972,0.56401126,102290.0,102280.0,0.048878]
[1736182517274,0.049878,102280.0,102270.0,0.326781]
[1736182517473,0.410678,102280.0,102270.0,0.326781]
[1736182517779,0.048882,102270.0,102260.0,0.185083]
[1736182517982,0.409682,102270.0,102260.0,0.183083]
[1736182518279,0.409682,102270.0,102260.0,0.32062087]
[1736182518575,0.048882,102270.0,102260.0,0.32062087]
[1736182518769,0.3698,102280.0,102260.0,0.32062087]
[1736182518976,0.418678,102280.0,102270.0,0.048882]
[1736182519176,0.409678,102280.0,102270.0,0.048882]
[1736182519786,0.409678,102280.0,102270.0,1.548882]
[1736182519969,0.409678,102280.0,102270.0,1.5]
[1736182519970,0.54721587,102280.0,102270.0,1.5]
[1736182520369,0.54821587,102280.0,102260.0,0.185083]
[1736182520574,0.409682,102270.0,102260.0,0.050883]
[1736182520774,0.409682,102270.0,102260.0,1.550883]
[1736182520978,0.54721987,102270.0,102260.0,1.502]
[1736182521182,0.409682,102270.0,102260.0,1.550887]
[1736182521773,0.409682,102270.0,102260.0,0.050887]
[1736182521975,0.409682,102270.0,102260.0,0.002]
[1736182522279,0.409682,102270.0,102260.0,0.004]
[1736182522685,0.54721987,102270.0,102260.0,0.004]
[1736182523383,0.54721987,102270.0,102240.0,0.189495]
[1736182523575,0.3608,102250.0,102240.0,0.189495]
[1736182523890,0.3608,102250.0,102230.0,1.55036594]
[1736182523891,0.048897,102240.0,102230.0,1.55036594]
[1736182524084,0.409697,102240.0,102230.0,1.55036594]
[1736182524884,0.409697,102240.0,102230.0,0.05036594]
[1736182525301,0.410697,102240.0,102230.0,0.05936594]
[1736182525783,0.409697,102240.0,102230.0,0.05036594]
[1736182525979,0.418697,102240.0,102230.0,0.05136594]
[1736182526675,0.419697,102240.0,102230.0,0.05136594]
[1736182527287,0.01,102240.0,102230.0,0.18890381]
[1736182528579,0.01,102240.0,102230.0,0.54970381]
[1736182528984,0.68034213,102260.0,102250.0,0.18642987]
[1736182529282,0.31954213,102260.0,102250.0,0.54722987]
[1736182529490,1e-08,102260.0,102250.0,0.82702987]
[1736182529689,0.7216,102260.0,102230.0,0.00246694]
[1736182529883,0.90803487,102240.0,102230.0,0.00246694]
[1736182530882,0.90803487,102240.0,102230.0,0.00146694]
[1736182531075,0.90803487,102240.0,102220.0,1.585903]
[1736182531283,0.49833787,102230.0,102220.0,1.585903]
[1736182531591,0.54723887,102230.0,102220.0,1.585903]
[1736182532284,0.54723887,102230.0,102220.0,1.588903]
[1736182532478,0.54723887,102230.0,102220.0,0.088903]
[1736182532681,0.3608,102230.0,102220.0,0.091903]
[1736182532996,0.49833787,102230.0,102220.0,1.591903]
[1736182533285,0.54723887,102230.0,102220.0,1.591903]
[1736182533887,0.54723887,102230.0,102220.0,1.592903]
[1736182535392,0.54723887,102230.0,102220.0,1.544]
[1736182535582,0.54723887,102230.0,102220.0,0.044]
[1736182535583,0.83973887,102230.0,102220.0,0.044]
[1736182535979,0.83973887,102230.0,102220.0,0.092906]
[1736182536987,0.409701,102230.0,102220.0,0.092906]
[1736182537890,0.54723887,102230.0,102220.0,0.092906]
[1736182538983,0.49833787,102230.0,102220.0,0.092906]
[1736182539180,0.3608,102240.0,102230.0,0.048901]
[1736182539388,0.3608,102240.0,102230.0,0.60113887]
[1736182539889,0.83455072,102270.0,102240.0,0.048897]
[1736182540084,0.83455072,102270.0,102260.0,0.18642487]
[1736182540085,0.36226772,102270.0,102260.0,0.18642487]
[1736182540483,0.00146772,102270.0,102260.0,1.68642487]
[1736182540687,0.36226772,102270.0,102260.0,1.96662487]
[1736182541096,0.3608,102270.0,102260.0,1.96662487]
[1736182541688,0.3648,102270.0,102260.0,1.96762487]
[1736182544086,0.3608,102270.0,102260.0,1.96662487]
[1736182544286,0.3608,102270.0,102260.0,1.97262487]
[1736182545993,0.3608,102270.0,102260.0,0.054887]
[1736182546189,0.409682,102270.0,102260.0,0.054887]
[1736182546786,0.409682,102270.0,102260.0,0.006]
[1736182547384,0.410682,102270.0,102260.0,0.002]
[1736182547590,0.410682,102270.0,102260.0,0.050887]
[1736182547990,0.413682,102270.0,102260.0,0.051887]
[1736182548186,0.413682,102270.0,102260.0,0.049887]
[1736182550494,0.413682,102270.0,102260.0,0.18742487]
[1736182550495,0.3648,102270.0,102260.0,0.18742487]
[1736182550894,0.3648,102270.0,102260.0,1.68742487]
[1736182551402,0.3608,102270.0,102260.0,1.83062487]
[1736182551587,0.004,102270.0,102260.0,1.97442487]
[1736182551794,0.3648,102270.0,102260.0,1.97442487]
[1736182551993,0.3648,102270.0,102260.0,1.97342487]
[1736182551994,0.3608,102270.0,102260.0,1.97342487]
[1736182552202,0.3648,102270.0,102260.0,1.97442487]
[1736182553497,0.3608,102270.0,102260.0,1.97342487]
[1736182553697,0.3608,102270.0,102260.0,0.050887]
[1736182553899,0.409682,102270.0,102260.0,0.054887]
[1736182554097,0.544982,102270.0,102260.0,0.054887]
[1736182554298,0.682082,102270.0,102260.0,0.006]
[1736182554497,0.81961987,102270.0,102260.0,0.006]
[1736182554810,0.9946226,102270.0,102260.0,0.002]
[1736182555199,1.0475076,102270.0,102260.0,0.001]
[1736182556199,1.0475076,102270.0,102240.0,1.548894]
[1736182556200,0.048892,102250.0,102240.0,1.548894]
[1736182556408,0.770492,102250.0,102240.0,1.548894]
[1736182557105,0.770492,102250.0,102240.0,1.5]
[1736182557596,0.770492,102250.0,102240.0,0.048897]
[1736182557999,0.771492,102250.0,102240.0,0.048897]
[1736182558604,0.774492,102250.0,102240.0,0.049897]
[1736182558799,0.7256,102250.0,102240.0,0.18743487]
[1736182559500,0.9280218,102250.0,102240.0,0.18743487]
[1736182559802,0.9280218,102250.0,102220.0,0.04669434]
[1736182560109,0.409701,102230.0,102220.0,0.085906]
[1736182560302,0.409701,102230.0,102220.0,0.037]
[1736182561008,0.409701,102230.0,102220.0,0.038]
[1736182561706,0.409701,102230.0,102220.0,0.086906]
[1736182561898,0.409701,102230.0,102220.0,0.088906]
[1736182562297,0.58472229,102230.0,102220.0,0.088906]
[1736182562499,0.58472229,102230.0,102220.0,0.087906]
[1736182562700,0.58472229,102230.0,102220.0,0.091906]
[1736182563006,0.58472229,102230.0,102220.0,0.043]
[1736182563710,0.54723887,102230.0,102220.0,0.043]
[1736182563914,0.69163887,102230.0,102220.0,0.043]
[1736182566204,0.70131365,102230.0,102220.0,0.043]
[1736182566509,0.76619758,102230.0,102220.0,0.043]
[1736182566806,0.90373545,102230.0,102220.0,0.043]
[1736182567007,0.90373545,102230.0,102220.0,1.543]
[1736182567308,0.70131365,102230.0,102220.0,1.543]
[1736182567699,0.70131365,102230.0,102220.0,0.043]